bitfinex-derivatives/quotes_BTCF0:USTF0_20250508
["timestamp","ask_amount","ask_price","bid_price","bid_amount"]
[1746707986236,0.43242283,99369.0,99368.0,0.5580418]
[1746707986548,0.43091434,99369.0,99368.0,0.5580418]
[1746707986738,0.43091434,99369.0,99368.0,0.3568]
[1746707988754,0.42940639,99369.0,99368.0,0.002]
[1746707988946,0.53004239,99369.0,99368.0,0.002]
[1746707989247,0.2012418,99368.0,99367.0,0.00050955]
[1746707989439,0.3018778,99368.0,99367.0,0.00050955]
[1746707989644,0.3334778,99368.0,99367.0,0.00050955]
[1746707990249,0.0503124,99364.0,99360.0,0.0001]
[1746707990548,0.562056,99361.0,99360.0,0.0001]
[1746707990742,0.201256,99361.0,99360.0,0.0001]
[1746707991152,0.369256,99361.0,99360.0,0.0001]
[1746707991657,0.201258,99360.0,99359.0,0.0001095]
[1746707991838,0.2012641,99357.0,99356.0,0.1999747]
[1746707992038,0.19824553,99357.0,99356.0,0.1999747]
[1746707992238,0.36624553,99357.0,99356.0,0.1999747]
[1746707992851,0.2515875,99355.0,99354.0,0.2012687]
[1746707993256,0.4831875,99355.0,99354.0,0.2012687]
[1746707994158,0.2012701,99354.0,99353.0,0.5620722]
[1746707994455,0.19976161,99354.0,99353.0,0.5620722]
[1746707994655,0.26336161,99354.0,99353.0,0.5620722]
[1746707994856,0.26185366,99354.0,99353.0,0.5620722]
[1746707995058,0.26185366,99354.0,99353.0,0.5605722]
[1746707995257,0.43485366,99354.0,99353.0,0.5600722]
[1746707997061,0.173,99354.0,99353.0,0.5917722]
[1746707997358,0.204,99354.0,99353.0,0.6242722]
[1746707997559,0.4052701,99354.0,99353.0,0.6242722]
[1746707997752,0.4052701,99354.0,99353.0,0.6227722]
[1746707998058,0.40376055,99354.0,99353.0,0.6212722]
[1746707998258,0.40225153,99354.0,99353.0,0.6212722]
[1746707998844,0.40225153,99354.0,99353.0,0.5701722]
[1746707999556,0.40225153,99354.0,99353.0,0.3689]
[1746708000454,0.16847294,99354.0,99353.0,0.5701722]
[1746708000655,0.16696499,99354.0,99353.0,0.5701722]
[1746708000852,0.36823509,99354.0,99353.0,0.5701722]
[1746708001247,0.36823509,99354.0,99353.0,0.2339722]
[1746708001554,0.2012762,99351.0,99350.0,0.0001]
[1746708002150,0.2012965,99341.0,99325.0,0.3608]
[1746708002346,0.2012965,99341.0,99336.0,0.0323]
[1746708002548,0.2012965,99341.0,99325.0,0.3608]
[1746708002549,0.2012965,99341.0,99326.0,0.0304]
[1746708002749,0.2012965,99341.0,99332.0,0.20282338]
[1746708002961,0.2658965,99341.0,99332.0,0.00151008]
[1746708003155,0.4338965,99341.0,99338.0,0.2013017]
[1746708003358,0.4338965,99341.0,99332.0,0.00151008]
[1746708003359,1.0346965,99341.0,99335.0,0.00100669]
[1746708003661,1.0346965,99341.0,99332.0,0.00151008]
[1746708003662,0.2013127,99333.0,99332.0,0.00111677]
[1746708003853,0.2013249,99328.0,99326.0,0.56183607]
[1746708004050,0.19981535,99328.0,99327.0,0.2516559]
[1746708004249,0.36781535,99328.0,99327.0,0.2317249]
[1746708004646,0.36781535,99328.0,99327.0,0.2638249]
[1746708004847,0.36630633,99328.0,99327.0,0.2638249]
[1746708005261,0.168,99328.0,99327.0,0.2638249]
[1746708005454,0.169,99328.0,99327.0,0.2638249]
[1746708005755,0.169,99328.0,99327.0,0.2838249]
[1746708006650,0.17,99328.0,99327.0,0.2838249]
[1746708006952,0.2012905,99346.0,99327.0,0.261]
[1746708007157,0.31189511,99348.0,99347.0,0.2012843]
[1746708007352,0.31038716,99348.0,99347.0,0.2012843]
[1746708007662,0.2012836,99348.0,99347.0,0.1997843]
[1746708007865,0.2012836,99348.0,99347.0,0.1982843]
[1746708008063,0.3692836,99348.0,99347.0,0.2310843]
[1746708008463,0.3692836,99348.0,99347.0,0.0328]
[1746708008865,0.3722836,99348.0,99347.0,0.0328]
[1746708009065,0.3722836,99348.0,99347.0,0.2340843]
[1746708009667,0.3722836,99348.0,99347.0,0.0328]
[1746708009965,0.37477618,99348.0,99347.0,0.2340843]
[1746708010160,0.37477618,99348.0,99347.0,0.2325843]
[1746708010463,0.37477618,99348.0,99347.0,0.2310843]
[1746708010464,0.37326929,99348.0,99347.0,0.2310843]
[1746708010667,0.48538929,99348.0,99347.0,0.2310843]
[1746708010857,0.48388293,99348.0,99347.0,0.2310843]
[1746708013158,0.48388293,99348.0,99347.0,0.2295843]
[1746708013354,0.28712,99348.0,99347.0,0.2295843]
[1746708013664,0.175,99348.0,99347.0,0.2623843]
[1746708013865,0.17349416,99348.0,99347.0,0.2623843]
[1746708014062,0.37327115,99348.0,99347.0,0.2623843]
[1746708014265,0.37327115,99348.0,99347.0,0.2608843]
[1746708014464,0.37327115,99348.0,99347.0,0.2593843]
[1746708016367,0.17198885,99348.0,99347.0,0.2593843]
[1746708016568,0.37327115,99348.0,99347.0,0.0253]
[1746708016770,0.37176637,99348.0,99347.0,0.2265843]
[1746708016962,0.37176637,99348.0,99347.0,0.2250843]
[1746708017270,0.37026212,99348.0,99347.0,0.2235843]
[1746708017574,0.3687584,99348.0,99347.0,0.2235843]
[1746708019472,0.4687584,99348.0,99347.0,0.2235843]
[1746708019657,0.4687584,99348.0,99347.0,0.2220843]
[1746708019865,0.46725521,99348.0,99347.0,0.2220843]
[1746708020063,0.46275254,99348.0,99347.0,0.2537843]
[1746708020264,0.46075254,99348.0,99347.0,0.2522843]
[1746708020573,0.36075254,99348.0,99347.0,0.2507843]
[1746708020768,0.15947024,99348.0,99347.0,0.2507843]
[1746708020968,0.36075254,99348.0,99347.0,0.2507843]
[1746708021367,0.15847024,99348.0,99347.0,0.2507843]
[1746708021680,0.15947024,99348.0,99347.0,0.2507843]
[1746708022173,0.36075254,99348.0,99347.0,0.2507843]
[1746708022561,0.39115254,99348.0,99347.0,0.2507843]
[1746708022765,0.3896504,99348.0,99347.0,0.2507843]
[1746708023071,0.3896504,99348.0,99347.0,0.2492843]
[1746708023277,0.38814879,99348.0,99347.0,0.2477843]
[1746708023466,0.3866477,99348.0,99347.0,0.2477843]
[1746708023665,0.1853654,99348.0,99347.0,0.2477843]
[1746708023968,0.1549654,99348.0,99347.0,0.2877843]
[1746708024768,0.1549654,99348.0,99347.0,0.4377843]
[1746708024967,0.1549654,99348.0,99347.0,0.4984403]
[1746708025572,0.1549654,99348.0,99347.0,0.3977843]
[1746708025774,0.1549654,99348.0,99347.0,0.3962843]
[1746708026075,0.1519648,99348.0,99347.0,0.3962843]
[1746708026276,0.1519648,99348.0,99347.0,0.3947843]
[1746708026574,0.001,99366.0,99347.0,0.3947843]
[1746708026575,0.001,99366.0,99347.0,0.482656]
[1746708026874,0.001,99366.0,99365.0,0.5620479]
[1746708027072,0.169,99366.0,99365.0,0.5920479]
[1746708027276,0.169,99366.0,99365.0,0.6227479]
[1746708028077,0.171,99366.0,99365.0,0.6227479]
[1746708028879,0.171,99366.0,99365.0,0.6212479]
[1746708029178,0.171,99366.0,99365.0,0.6197479]
[1746708029470,0.16949045,99366.0,99365.0,0.6397479]
[1746708029673,0.16949045,99366.0,99365.0,0.6705479]
[1746708030672,0.16949045,99366.0,99365.0,0.7005479]
[1746708031074,0.16949045,99366.0,99365.0,0.70798744]
[1746708031572,0.16798143,99366.0,99365.0,0.70798744]
[1746708031768,0.16647294,99366.0,99365.0,0.70798744]
[1746708031975,0.16647294,99366.0,99365.0,0.70648744]
[1746708032279,0.16647294,99366.0,99365.0,0.6190479]
[1746708034476,0.36771874,99366.0,99365.0,0.3593]
[1746708034676,0.36771874,99366.0,99365.0,0.5590479]
[1746708034979,0.36620919,99366.0,99365.0,0.5590479]
[1746708035171,0.38620919,99366.0,99365.0,0.5590479]
[1746708037180,0.38470017,99366.0,99365.0,0.5590479]
[1746708037476,0.38319168,99366.0,99365.0,0.5575479]
[1746708039880,0.38319168,99366.0,99365.0,0.5560479]
[1746708040174,0.38319168,99366.0,99365.0,0.5545479]
[1746708040377,0.38168213,99366.0,99365.0,0.5545479]
[1746708040879,0.36168213,99366.0,99365.0,0.5545479]
[1746708042478,0.36017311,99366.0,99365.0,0.5545479]
[1746708042685,0.35866462,99366.0,99365.0,0.5545479]
[1746708042973,0.35866462,99366.0,99365.0,0.3518]
[1746708043181,0.2012661,99356.0,99355.0,0.6123815]
[1746708043374,0.2012661,99356.0,99355.0,0.6626978]
[1746708044198,0.4329661,99356.0,99355.0,0.6626978]
[1746708044695,0.4339661,99356.0,99355.0,0.6646978]
[1746708045496,0.4339661,99356.0,99355.0,0.6616978]
[1746708045788,0.43245655,99356.0,99355.0,0.6616978]
[1746708045988,0.43345655,99356.0,99355.0,0.6636978]
[1746708046684,0.2337,99356.0,99355.0,0.6636978]
[1746708047873,0.2009,99356.0,99355.0,0.7236978]
[1746708048079,0.17,99356.0,99355.0,0.7236978]
[1746708048382,0.17,99356.0,99355.0,0.8221978]
[1746708048383,0.16849151,99356.0,99355.0,0.8221978]
[1746708050588,0.16849151,99356.0,99355.0,0.8206978]
[1746708050788,0.16849151,99356.0,99355.0,0.8191978]
[1746708050985,0.16698196,99356.0,99355.0,0.8191978]
[1746708051582,0.16698196,99356.0,99355.0,0.7191978]
[1746708053387,0.36523055,99356.0,99355.0,0.6591978]
[1746708053587,0.36523055,99356.0,99355.0,0.2052651]
[1746708053792,0.36523055,99356.0,99355.0,0.5660651]
[1746708054177,0.36523055,99356.0,99355.0,0.004]
[1746708054178,0.42633055,99356.0,99355.0,0.004]
[1746708054983,0.42633055,99356.0,99355.0,0.2052681]
[1746708055182,0.42633055,99356.0,99355.0,0.004]
[1746708055688,0.42633055,99356.0,99355.0,0.2052681]
[1746708055891,0.42633055,99356.0,99355.0,0.2037681]
[1746708056091,0.42633055,99356.0,99355.0,0.2022681]
[1746708056291,0.424821,99356.0,99355.0,0.2022681]
[1746708058285,0.424821,99356.0,99355.0,0.001]
[1746708058286,0.42466681,99356.0,99355.0,0.001]
[1746708058482,0.42315779,99356.0,99355.0,0.001]
[1746708058685,0.4216493,99356.0,99355.0,0.001]
[1746708058879,0.2012722,99354.0,99352.0,0.0498185]
[1746708059094,0.2012722,99354.0,99353.0,0.2012714]
[1746708059294,0.3692722,99354.0,99353.0,0.2012714]
[1746708059794,0.2516074,99348.0,99347.0,0.3019122]
[1746708060192,0.4196074,99348.0,99347.0,0.3019122]
[1746708061192,0.2012864,99346.0,99345.0,0.00150972]
[1746708061387,0.2012864,99346.0,99345.0,9.72e-06]
[1746708061588,0.19977685,99346.0,99345.0,9.72e-06]
[1746708061989,0.19977685,99346.0,99345.0,0.20129812]
[1746708062198,0.36777685,99346.0,99345.0,0.20129812]
[1746708062607,0.36877685,99346.0,99345.0,0.20129812]
[1746708062897,0.36977685,99346.0,99345.0,0.20129812]
[1746708063488,0.37077685,99346.0,99345.0,0.20129812]
[1746708063689,0.36926783,99346.0,99345.0,0.20129812]
[1746708063887,0.36775934,99346.0,99345.0,0.20129812]
[1746708064298,0.36775934,99346.0,99345.0,0.19979812]
[1746708064688,0.36675934,99346.0,99345.0,0.19979812]
[1746708064893,0.36775934,99346.0,99345.0,0.19979812]
[1746708066497,0.36775934,99346.0,99345.0,0.19829812]
[1746708066699,0.36775934,99346.0,99345.0,0.19679812]
[1746708066890,0.36624979,99346.0,99345.0,0.19679812]
[1746708067101,0.2012924,99343.0,99342.0,0.5620929]
[1746708067396,0.2012924,99343.0,99342.0,0.3608]
[1746708067602,0.2013066,99336.0,99335.0,0.22296175]
[1746708068192,0.3693066,99336.0,99335.0,0.22296175]
[1746708068587,0.7301066,99336.0,99335.0,0.02165365]
[1746708069101,0.7311066,99336.0,99335.0,0.02265365]
[1746708069300,0.72808909,99336.0,99335.0,0.22396225]
[1746708069496,0.36728909,99336.0,99335.0,0.22396225]
[1746708069695,0.36728909,99336.0,99335.0,0.22246225]
[1746708069900,0.36828909,99336.0,99335.0,0.22346225]
[1746708070390,0.17,99336.0,99335.0,0.22346225]
[1746708070595,0.3713066,99336.0,99335.0,0.22346225]
[1746708070795,0.3713066,99336.0,99335.0,0.25506225]
[1746708071892,0.3713066,99336.0,99335.0,0.22196225]
[1746708072091,0.3713066,99336.0,99335.0,0.22046225]
[1746708072291,0.36979705,99336.0,99335.0,0.22046225]
[1746708072599,0.36979705,99336.0,99335.0,0.01915365]
[1746708072799,0.40129705,99336.0,99335.0,0.22046225]
[1746708074106,0.40129705,99336.0,99335.0,0.01915365]
[1746708074299,0.40129705,99336.0,99335.0,0.22046225]
[1746708074501,0.39978803,99336.0,99335.0,0.01915365]
[1746708074701,0.39827954,99336.0,99335.0,0.01915365]
[1746708074903,0.42877954,99336.0,99335.0,0.01765365]
[1746708075102,0.42877954,99336.0,99335.0,0.21896225]
[1746708077402,0.42877954,99336.0,99335.0,0.01465365]
[1746708077702,0.42726999,99336.0,99335.0,0.01465365]
[1746708080008,0.42576097,99336.0,99335.0,0.01465365]
[1746708080203,0.42425248,99336.0,99335.0,0.01465365]
[1746708080407,0.42425248,99336.0,99335.0,0.01315365]
[1746708082794,0.42425248,99336.0,99335.0,0.01165365]
[1746708083205,0.42625248,99336.0,99335.0,0.00915365]
[1746708083408,0.42474293,99336.0,99335.0,0.00915365]
[1746708084606,0.42574293,99336.0,99335.0,0.00815365]
[1746708084811,0.42474293,99336.0,99335.0,0.00815365]
[1746708085717,0.42323391,99336.0,99335.0,0.00815365]
[1746708085917,0.39022542,99336.0,99335.0,0.20946225]
[1746708086103,0.39022542,99336.0,99335.0,0.20796225]
[1746708086304,0.38822542,99336.0,99335.0,0.20796225]
[1746708086512,0.39022542,99336.0,99335.0,0.20796225]
[1746708087512,0.15841882,99336.0,99335.0,0.56876225]
[1746708087701,0.15641882,99336.0,99335.0,0.56876225]
[1746708087906,0.15841882,99336.0,99335.0,0.62876225]
[1746708088307,0.15641882,99336.0,99335.0,0.62726225]
[1746708088505,0.15741882,99336.0,99335.0,0.62576225]
[1746708088710,0.15590927,99336.0,99335.0,0.62576225]
[1746708089107,0.15590927,99336.0,99335.0,0.62676225]
[1746708089514,0.15490927,99336.0,99335.0,0.62776225]
[1746708091014,0.15340025,99336.0,99335.0,0.62776225]
[1746708091204,0.15189176,99336.0,99335.0,0.62776225]
[1746708091617,0.15189176,99336.0,99335.0,0.62626225]
[1746708093808,0.15189176,99336.0,99335.0,0.62476225]
[1746708094015,0.15189176,99336.0,99335.0,0.62326225]
[1746708094211,0.15038221,99336.0,99335.0,0.62326225]
[1746708096515,0.14887319,99336.0,99335.0,0.62326225]
[1746708096717,0.1473647,99336.0,99335.0,0.62326225]
[1746708096909,0.1473647,99336.0,99335.0,0.62176225]
[1746708099323,0.1473647,99336.0,99335.0,0.61876225]
[1746708099522,0.14585515,99336.0,99335.0,0.61876225]
[1746708100420,0.14585515,99336.0,99335.0,0.63876225]
[1746708100720,0.00251,99340.0,99339.0,0.2013005]
[1746708100924,0.0327,99347.0,99346.0,0.2012864]
[1746708101124,0.2007,99347.0,99346.0,0.3012864]
[1746708101712,0.19919098,99347.0,99346.0,0.3621864]
[1746708101923,0.168,99347.0,99346.0,0.3621864]
[1746708102220,0.168,99347.0,99346.0,0.3606864]
[1746708102419,0.169,99347.0,99346.0,0.3606864]
[1746708103918,0.171,99347.0,99346.0,0.3616864]
[1746708104422,0.171,99347.0,99346.0,0.3601864]
[1746708104815,0.16949045,99347.0,99346.0,0.3586864]
[1746708107125,0.16798143,99347.0,99346.0,0.3586864]
[1746708107329,0.16547294,99347.0,99346.0,0.3586864]
[1746708107532,0.16547294,99347.0,99346.0,0.3571864]
[1746708107829,0.16447294,99347.0,99346.0,0.3571864]
[1746708108030,0.16547294,99347.0,99346.0,0.3591864]
[1746708109823,0.16547294,99347.0,99346.0,0.3576864]
[1746708110024,0.16396339,99347.0,99346.0,0.3561864]
[1746708110827,0.16396339,99347.0,99346.0,0.2257864]
[1746708112135,0.16396339,99347.0,99346.0,0.2582864]
[1746708112534,0.16245437,99347.0,99346.0,0.2582864]
[1746708112730,0.16094588,99347.0,99346.0,0.1952864]
[1746708112928,0.16094588,99347.0,99346.0,0.1937864]
[1746708114438,0.16094588,99347.0,99346.0,0.1947864]
[1746708114629,0.15994588,99347.0,99346.0,0.2127864]
[1746708114832,0.16094588,99347.0,99346.0,0.2456864]
[1746708115226,0.15994588,99347.0,99346.0,0.2421864]
[1746708115422,0.16094588,99347.0,99346.0,0.2755864]
[1746708115635,0.15943633,99347.0,99346.0,0.2755864]
[1746708117035,0.15943633,99347.0,99346.0,0.2117864]
[1746708117830,0.15792731,99347.0,99346.0,0.2117864]
[1746708118028,0.15641882,99347.0,99346.0,0.2117864]
[1746708118233,0.15641882,99347.0,99346.0,0.2102864]
[1746708120433,0.15641882,99347.0,99346.0,0.2087864]
[1746708120628,0.15641882,99347.0,99346.0,0.2072864]
[1746708120842,0.15490927,99347.0,99346.0,0.2072864]
[1746708121234,0.15490927,99347.0,99346.0,0.1872864]
[1746708123047,0.15340025,99347.0,99346.0,0.1872864]
[1746708123239,0.15189176,99347.0,99346.0,0.1872864]
[1746708123545,0.15189176,99347.0,99346.0,0.20119433]
[1746708125739,0.15189176,99347.0,99346.0,0.19969433]
[1746708125946,0.15038221,99347.0,99346.0,0.19819433]
[1746708128349,0.1473647,99347.0,99346.0,0.19819433]
[1746708128750,0.1473647,99347.0,99346.0,0.19669433]
[1746708130152,0.1473647,99347.0,99346.0,0.19677088]
[1746708130953,0.1473647,99347.0,99346.0,0.19527088]
[1746708131153,0.1473647,99347.0,99346.0,0.19377088]
[1746708131348,0.14585515,99347.0,99346.0,0.19377088]
[1746708133658,0.14434613,99347.0,99346.0,0.19377088]
[1746708133855,0.14283764,99347.0,99346.0,0.19377088]
[1746708134058,0.14283764,99347.0,99346.0,0.19227088]
[1746708134467,0.14283764,99347.0,99346.0,0.01948448]
[1746708134763,0.70492194,99347.0,99346.0,0.01948448]
[1746708134958,0.76972194,99347.0,99346.0,0.01948448]
[1746708135164,0.40892194,99347.0,99346.0,0.01948448]
[1746708135365,0.76972194,99347.0,99346.0,0.01948448]
[1746708135565,0.76972194,99347.0,99346.0,0.01973537]
[1746708135967,0.76972194,99347.0,99346.0,0.01968225]
[1746708136167,1.12037794,99347.0,99346.0,0.01968225]
[1746708136560,1.12037794,99347.0,99346.0,0.0025]
[1746708136863,0.86886839,99347.0,99346.0,0.001]
[1746708137767,0.86886839,99347.0,99346.0,0.01654682]
[1746708137971,0.86886839,99347.0,99346.0,0.001]
[1746708138571,0.86886839,99347.0,99346.0,0.0165428]
[1746708139069,0.86735937,99347.0,99346.0,0.0165428]
[1746708139370,0.86585088,99347.0,99346.0,0.01649162]
[1746708139572,0.86585088,99347.0,99346.0,0.01499162]
[1746708140370,0.2012965,99341.0,99340.0,0.2012982]
[1746708141370,0.4298965,99341.0,99340.0,0.2012982]
[1746708141567,0.4408965,99341.0,99340.0,0.2012982]
[1746708141762,0.4408965,99341.0,99340.0,0.1997982]
[1746708141964,0.4408965,99341.0,99340.0,0.1982982]
[1746708142165,0.43938695,99341.0,99340.0,0.1982982]
[1746708143377,0.43438695,99341.0,99340.0,0.1982982]
[1746708143567,0.43638695,99341.0,99340.0,0.1982982]
[1746708143874,0.43038695,99341.0,99340.0,0.1982982]
[1746708144074,0.43238695,99341.0,99340.0,0.1982982]
[1746708144475,0.42936944,99341.0,99340.0,0.1982982]
[1746708144667,0.42936944,99341.0,99340.0,0.1967982]
[1746708145979,0.2013066,99336.0,99335.0,0.2516287]
[1746708146180,0.3693066,99336.0,99335.0,0.2516287]
[1746708146777,0.4336066,99336.0,99335.0,0.2516287]
[1746708147273,0.4356066,99336.0,99335.0,0.2486287]
[1746708147577,0.43409705,99336.0,99335.0,0.2486287]
[1746708149782,0.43107954,99336.0,99335.0,0.2486287]
[1746708150174,0.43107954,99336.0,99335.0,0.2471287]
[1746708151683,0.43107954,99336.0,99335.0,0.26286522]
[1746708152275,0.2027,99336.0,99335.0,0.278127]
[1746708152475,0.2027,99336.0,99335.0,0.787427]
[1746708152675,0.20119045,99336.0,99335.0,0.765927]
[1746708152884,0.16849045,99336.0,99335.0,0.797327]
[1746708154984,0.16698143,99336.0,99335.0,0.797327]
[1746708155176,0.16547294,99336.0,99335.0,0.797327]
[1746708155376,0.16043791,99336.0,99335.0,0.795827]
[1746708155788,0.16043791,99336.0,99335.0,0.79582496]
[1746708157383,0.16043791,99336.0,99335.0,0.97582496]
[1746708157574,0.00251,99345.0,99344.0,0.2012904]
[1746708157780,0.0333,99357.0,99356.0,0.2012661]
[1746708158082,0.0333,99357.0,99356.0,0.65156236]
[1746708158284,0.19979045,99357.0,99356.0,0.65156236]
[1746708158486,0.19979045,99357.0,99356.0,0.71536236]
[1746708158678,0.19979045,99357.0,99356.0,0.71536045]
[1746708158878,0.40105455,99357.0,99356.0,0.71536045]
[1746708160377,0.40205455,99357.0,99356.0,0.71636045]
[1746708160678,0.39903704,99357.0,99356.0,0.65636045]
[1746708160877,0.40003704,99357.0,99356.0,0.65586045]
[1746708163090,0.40003704,99357.0,99356.0,0.62396082]
[1746708163384,0.40003704,99357.0,99356.0,0.62096082]
[1746708163583,0.39852749,99357.0,99356.0,0.62096082]
[1746708164888,0.39852749,99357.0,99356.0,0.62096075]
[1746708165788,0.39701847,99357.0,99356.0,0.62096075]
[1746708166085,0.39550998,99357.0,99356.0,0.62096075]
[1746708166280,0.39550998,99357.0,99356.0,0.61946075]
[1746708168489,0.39550998,99357.0,99356.0,0.61796075]
[1746708168688,0.39550998,99357.0,99356.0,0.61646075]
[1746708168890,0.39400043,99357.0,99356.0,0.61646075]
[1746708169592,0.39400043,99357.0,99356.0,0.03299465]
[1746708170491,0.42710043,99357.0,99356.0,0.03299578]
[1746708170983,0.42559141,99357.0,99356.0,0.03099578]
[1746708171188,0.25162,99343.0,99333.0,0.0503279]
[1746708171394,0.25162,99343.0,99341.0,0.01423431]
[1746708171395,0.2343945,99342.0,99341.0,0.01423431]
[1746708171588,0.2663945,99342.0,99341.0,0.21553081]
[1746708172092,0.4343945,99342.0,99341.0,0.01423431]
[1746708172292,0.2012985,99340.0,99339.0,0.2012994]
[1746708173092,0.3692985,99340.0,99339.0,0.2012994]
[1746708173493,0.3692985,99340.0,99339.0,0.2338994]
[1746708173795,0.3692985,99340.0,99339.0,0.2323994]
[1746708173989,0.3702985,99340.0,99339.0,0.2333994]
[1746708174190,0.3702985,99340.0,99339.0,0.2318994]
[1746708174397,0.3712985,99340.0,99339.0,0.2328994]
[1746708174584,0.36978895,99340.0,99339.0,0.2328994]
[1746708174885,0.40228895,99340.0,99339.0,0.2328994]
[1746708175889,0.40128895,99340.0,99339.0,0.2318994]
[1746708176095,0.40328895,99340.0,99339.0,0.2328994]
[1746708176793,0.40177993,99340.0,99339.0,0.2328994]
[1746708177098,0.40027144,99340.0,99339.0,0.2313994]
[1746708179490,0.40027144,99340.0,99339.0,0.2298994]
[1746708179795,0.40027144,99340.0,99339.0,0.2283994]
[1746708179993,0.39876189,99340.0,99339.0,0.2283994]
[1746708182299,0.39574438,99340.0,99339.0,0.2283994]
[1746708182488,0.39574438,99340.0,99339.0,0.2268994]
[1746708182687,0.4047985,99340.0,99339.0,0.2268994]
[1746708182893,0.4047985,99340.0,99339.0,0.3168994]
[1746708183491,0.4047985,99340.0,99339.0,0.33263373]
[1746708183689,0.4047985,99340.0,99339.0,0.34809361]
[1746708183997,0.4047985,99340.0,99339.0,0.3480936]
[1746708184494,0.4047985,99340.0,99339.0,0.2580936]
[1746708184892,0.4047985,99340.0,99339.0,0.2565936]
[1746708185192,0.40328895,99340.0,99339.0,0.2550936]
[1746708187303,0.40328895,99340.0,99339.0,0.23963372]
[1746708187600,0.40027144,99340.0,99339.0,0.23963372]
[1746708187800,0.40027144,99340.0,99339.0,0.23813372]
[1746708188001,0.40027144,99340.0,99339.0,0.23813495]
[1746708189288,0.40027144,99340.0,99339.0,0.25354423]
[1746708189900,0.40027144,99340.0,99339.0,0.2535442]
[1746708190196,0.40027144,99340.0,99339.0,0.2505442]
[1746708190399,0.39876189,99340.0,99339.0,0.2505442]
[1746708191007,0.39876189,99340.0,99339.0,0.01773552]
[1746708191302,0.39876189,99340.0,99339.0,0.21903602]
[1746708191705,0.39876189,99340.0,99339.0,0.21903628]
[1746708192004,0.39876189,99340.0,99339.0,0.01773578]
[1746708192206,0.39876189,99340.0,99339.0,0.21903628]
[1746708192405,0.39876189,99340.0,99339.0,0.21903625]
[1746708192699,0.39725287,99340.0,99339.0,0.21903625]
[1746708192903,0.39574438,99340.0,99339.0,0.21903625]
[1746708193106,0.39574438,99340.0,99339.0,0.21753625]
[1746708193296,0.39574438,99340.0,99339.0,0.21753634]
[1746708193495,0.39574438,99340.0,99339.0,0.01623577]
[1746708195399,0.39574438,99340.0,99339.0,0.01573577]
[1746708195604,0.39574438,99340.0,99339.0,0.01323577]
[1746708195905,0.39423483,99340.0,99339.0,0.01323577]
[1746708196198,0.75503483,99340.0,99339.0,0.01323577]
[1746708196405,0.2013127,99333.0,99332.0,0.00151008]
[1746708197190,0.4335127,99333.0,99332.0,0.00151008]
[1746708197701,0.4345127,99333.0,99332.0,0.00151008]
[1746708198097,0.43300368,99333.0,99332.0,0.00151008]
[1746708198403,0.43249519,99333.0,99332.0,1.008e-05]
[1746708200608,0.43149519,99333.0,99332.0,1.008e-05]
[1746708200800,0.2013147,99332.0,99331.0,0.19982568]
[1746708201003,0.19982745,99321.0,99320.0,0.201436]
[1746708201199,0.36782745,99321.0,99320.0,0.201436]
[1746708202210,0.36782745,99321.0,99320.0,0.231436]
[1746708202508,0.36882745,99321.0,99320.0,0.232436]
[1746708202710,0.40092745,99321.0,99320.0,0.232436]
[1746708203407,0.40092745,99321.0,99320.0,0.230936]
[1746708203810,0.39941843,99321.0,99320.0,0.230936]
[1746708204013,0.39790994,99321.0,99320.0,0.230936]
[1746708204306,0.39890994,99321.0,99320.0,0.230436]
[1746708206109,0.39890994,99321.0,99320.0,0.032]
[1746708206310,0.75970994,99321.0,99320.0,0.002]
[1746708206505,0.75820199,99321.0,99320.0,0.002]
[1746708206705,0.2013472,99316.0,99315.0,0.00051039]
[1746708206906,0.19983978,99316.0,99315.0,0.00051039]
[1746708207209,0.32783978,99316.0,99315.0,0.20185959]
[1746708207710,0.38923978,99316.0,99315.0,0.20185959]
[1746708207900,0.39023978,99316.0,99315.0,0.20285959]
[1746708208307,0.39123978,99316.0,99315.0,0.21837852]
[1746708208509,0.39123978,99316.0,99315.0,0.22852434]
[1746708208708,0.39123978,99316.0,99315.0,0.26002434]
[1746708208910,0.39123978,99316.0,99315.0,0.24987852]
[1746708209104,0.39123978,99316.0,99315.0,0.24837852]
[1746708209305,0.38973289,99316.0,99315.0,0.24837852]
[1746708209510,0.38822653,99316.0,99315.0,0.24587852]
[1746708209697,0.38822653,99316.0,99315.0,0.25630434]
[1746708210606,0.38822653,99316.0,99315.0,0.24836813]
[1746708211009,0.38722653,99316.0,99315.0,0.24836813]
[1746708211206,0.38822653,99316.0,99315.0,0.24836813]
[1746708211703,0.38822653,99316.0,99315.0,0.21668888]
[1746708211908,0.38822653,99316.0,99315.0,0.21518888]
[1746708211909,0.38672069,99316.0,99315.0,0.21518888]
[1746708212106,0.38672069,99316.0,99315.0,0.21368888]
[1746708212308,0.38521538,99316.0,99315.0,0.21368888]
[1746708213400,0.38521538,99316.0,99315.0,0.21362856]
[1746708213595,0.38521538,99316.0,99315.0,0.24582856]
[1746708214211,0.38521538,99316.0,99315.0,0.04747936]
[1746708214706,0.3837106,99316.0,99315.0,0.24732856]
[1746708214899,0.38220635,99316.0,99315.0,0.24732856]
[1746708215103,0.38320635,99316.0,99315.0,0.04447936]
[1746708215304,0.38320635,99316.0,99315.0,0.24582856]
[1746708215810,0.3723472,99316.0,99315.0,0.28582856]
[1746708216208,0.3723472,99316.0,99315.0,0.24582856]
[1746708216913,0.3723472,99316.0,99315.0,0.2335492]
[1746708217214,0.37084348,99316.0,99315.0,0.2335492]
[1746708217414,0.37084348,99316.0,99315.0,0.2320492]
[1746708217609,0.37084348,99316.0,99315.0,0.2305492]
[1746708217816,0.36934029,99316.0,99315.0,0.2305492]
[1746708220114,0.39893762,99316.0,99315.0,0.2290492]
[1746708220303,0.39743548,99316.0,99315.0,0.2290492]
[1746708220507,0.39743548,99316.0,99315.0,0.2275492]
[1746708222813,0.39593387,99316.0,99315.0,0.2275492]
[1746708223014,0.39593387,99316.0,99315.0,0.2245492]
[1746708223212,0.16198558,99316.0,99315.0,0.2245492]
[1746708223520,0.16198558,99316.0,99315.0,0.3045492]
[1746708224412,0.16198558,99316.0,99315.0,0.2945492]
[1746708225519,0.16198558,99316.0,99315.0,0.2930492]
[1746708225717,0.16048502,99316.0,99315.0,0.2930492]
[1746708225924,0.15898498,99316.0,99315.0,0.2930492]
[1746708226113,0.15898498,99316.0,99315.0,0.2915492]
[1746708226309,0.15898498,99316.0,99315.0,0.4915492]
[1746708226914,0.15898498,99316.0,99315.0,0.5922372]
[1746708227611,0.15898498,99316.0,99315.0,0.3922372]
[1746708228417,0.15898498,99316.0,99315.0,0.3907372]
[1746708228621,0.1574749,99316.0,99315.0,0.3892372]
[1746708230920,0.15596535,99316.0,99315.0,0.3892372]
[1746708231120,0.15445633,99316.0,99315.0,0.3892372]
[1746708231418,0.15445633,99316.0,99315.0,0.3877372]
[1746708231815,0.0332,99339.0,99320.0,0.0503346]
[1746708232015,0.0317,99338.0,99333.0,0.5621127]
[1746708232222,0.2013083,99336.0,99335.0,0.2516313]
[1746708233124,0.3693083,99336.0,99335.0,0.2516313]